[Event "Titled Tuesday Blitz January 10 Late 2023"]
[White "Klose, Eli"]
[Black "Stanisz, Patryk"]
[WhiteFideId "16242955"]
[BlackFideId "1123106"]
[WhiteElo "1519"]
[BlackElo "2161"]
[Result "1/2-1/2"]
[Round "01"]
[TimeControl "180+2"]
[Date "2023.01.10"]
[WhiteClock "0:00:33"]
[BlackClock "0:00:05"]

1. e4 {[%clk 0:00:00]}  c5 {[%clk 0:00:00]} 2. Nc3 {[%clk 0:03:00]}  Nc6 {[%clk 0:02:59]} 3. d3 {[%clk 0:02:59]}  g6 {[%clk 0:03:00]} 4. g3 {[%clk 0:02:59]}  Bg7 {[%clk 0:02:59]} 5. Bg2 {[%clk 0:03:00]}  Rb8 {[%clk 0:02:59]} 6. Be3 {[%clk 0:02:59]}  d6 {[%clk 0:02:59]} 7. Qd2 {[%clk 0:02:59]}  b5 {[%clk 0:03:00]} 8. Nge2 {[%clk 0:03:00]}  b4 {[%clk 0:03:00]} 9. Nd1 {[%clk 0:02:58]}  a5 {[%clk 0:03:00]} 10. O-O {[%clk 0:02:58]}  a4 {[%clk 0:03:01]} 11. Rb1 {[%clk 0:02:58]}  e6 {[%clk 0:03:02]} 12. f4 {[%clk 0:02:58]}  Nge7 {[%clk 0:03:01]} 13. g4 {[%clk 0:02:57]}  Ba6 {[%clk 0:03:01]} 14. f5 {[%clk 0:02:55]}  gxf5 {[%clk 0:03:01]} 15. exf5 {[%clk 0:02:55]}  Nd5 {[%clk 0:02:53]} 16. fxe6 {[%clk 0:02:46]}  fxe6 {[%clk 0:01:35]} 17. Nf4 {[%clk 0:02:38]}  Qd7 {[%clk 0:01:35]} 18. Nxd5 {[%clk 0:02:36]}  exd5 {[%clk 0:01:13]} 19. Bxd5 {[%clk 0:02:35]}  Ne5 {[%clk 0:01:13]} 20. h3 {[%clk 0:02:35]}  h5 {[%clk 0:01:08]} 21. g5 {[%clk 0:02:29]}  Qxh3 {[%clk 0:01:05]} 22. Qg2 {[%clk 0:02:23]}  Qxg2+ {[%clk 0:01:00]} 23. Kxg2 {[%clk 0:02:22]}  Bb7 {[%clk 0:01:00]} 24. Bxb7 {[%clk 0:02:22]}  Rxb7 {[%clk 0:01:00]} 25. Nf2 {[%clk 0:02:21]}  Rf7 {[%clk 0:01:01]} 26. b3 {[%clk 0:02:18]}  axb3 {[%clk 0:00:56]} 27. axb3 {[%clk 0:02:18]}  Ke7 {[%clk 0:00:55]} 28. Ra1 {[%clk 0:02:18]}  Ke6 {[%clk 0:00:51]} 29. Ra6 {[%clk 0:02:16]}  Ng4 {[%clk 0:00:41]} 30. Nxg4 {[%clk 0:02:12]}  Rxf1 {[%clk 0:00:37]} 31. Kxf1 {[%clk 0:02:01]}  hxg4 {[%clk 0:00:37]} 32. Bxc5 {[%clk 0:01:59]}  Be5 {[%clk 0:00:37]} 33. Bxb4 {[%clk 0:01:59]}  g3 {[%clk 0:00:28]} 34. Bc5 {[%clk 0:01:56]}  Rh1+ {[%clk 0:00:20]} 35. Kg2 {[%clk 0:01:35]}  Rh2+ {[%clk 0:00:16]} 36. Kf3 {[%clk 0:01:22]}  Rxc2 {[%clk 0:00:16]} 37. d4 {[%clk 0:01:22]}  g2 {[%clk 0:00:15]} 38. dxe5 {[%clk 0:01:15]}  Rxc5 {[%clk 0:00:15]} 39. Kxg2 {[%clk 0:01:14]}  Rxe5 {[%clk 0:00:08]} 40. g6 {[%clk 0:01:04]}  Rg5+ {[%clk 0:00:07]} 41. Kf3 {[%clk 0:01:00]}  Rxg6 {[%clk 0:00:07]} 42. Ke4 {[%clk 0:01:01]}  Rg4+ {[%clk 0:00:07]} 43. Kd3 {[%clk 0:01:00]}  Kd5 {[%clk 0:00:07]} 44. Ra5+ {[%clk 0:01:00]}  Kc6 {[%clk 0:00:08]} 45. Rh5 {[%clk 0:01:00]}  Rf4 {[%clk 0:00:08]} 46. Kc3 {[%clk 0:01:00]}  Rg4 {[%clk 0:00:07]} 47. Kb2 {[%clk 0:01:01]}  Rf4 {[%clk 0:00:08]} 48. Ka3 {[%clk 0:01:01]}  Kb6 {[%clk 0:00:08]} 49. Rd5 {[%clk 0:01:01]}  Kc6 {[%clk 0:00:08]} 50. Rd2 {[%clk 0:01:01]}  d5 {[%clk 0:00:07]} 51. Rh2 {[%clk 0:01:01]}  Kc5 {[%clk 0:00:07]} 52. Rh8 {[%clk 0:00:58]}  d4 {[%clk 0:00:08]} 53. Rc8+ {[%clk 0:00:54]}  Kb5 {[%clk 0:00:07]} 54. Rd8 {[%clk 0:00:52]}  Kc5 {[%clk 0:00:08]} 55. Rc8+ {[%clk 0:00:51]}  Kb5 {[%clk 0:00:08]} 56. Re8 {[%clk 0:00:50]}  Kc5 {[%clk 0:00:08]} 57. Re5+ {[%clk 0:00:51]}  Kb6 {[%clk 0:00:08]} 58. Kb4 {[%clk 0:00:51]}  Rf3 {[%clk 0:00:08]} 59. Rd5 {[%clk 0:00:49]}  d3 {[%clk 0:00:05]} 60. Rd6+ {[%clk 0:00:45]}  Kc7 {[%clk 0:00:03]} 61. Rd4 {[%clk 0:00:39]}  Kc6 {[%clk 0:00:03]} 62. Kc4 {[%clk 0:00:40]}  Rg3 {[%clk 0:00:04]} 63. b4 {[%clk 0:00:37]}  Kb6 {[%clk 0:00:03]} 64. Rd6+ {[%clk 0:00:37]}  Kc7 {[%clk 0:00:03]} 65. Rd5 {[%clk 0:00:37]}  Kc6 {[%clk 0:00:03]} 66. b5+ {[%clk 0:00:37]}  Kb6 {[%clk 0:00:04]} 67. Rd6+ {[%clk 0:00:34]}  Kc7 {[%clk 0:00:04]} 68. Rd5 {[%clk 0:00:34]}  Kb6 {[%clk 0:00:05]} 69. Rd6+ {[%clk 0:00:34]}  Kc7 {[%clk 0:00:05]} 70. Rd4 {[%clk 0:00:33]}  Kb6 {[%clk 0:00:05]} 71. Kb4 {[%clk 0:00:34]}  Rh3 {[%clk 0:00:05]} 72. Kc4 {[%clk 0:00:33]}  Rg3 {[%clk 0:00:05]} 73. Rd6+ {[%clk 0:00:33]} 1/2-1/2


[Site "https://www.chess.com"]

[Event "Titled Tuesday Blitz January 10 Late 2023"]
[White "Golubev, Mikhail"]
[Black "Antonio, Jorge Carlos"]
[WhiteFideId "14100983"]
[BlackFideId "113190"]
[WhiteElo "2461"]
[BlackElo "2277"]
[Result "1-0"]
[Round "01"]
[TimeControl "180+2"]
[Date "2023.01.10"]
[WhiteClock "0:00:02"]
[BlackClock "0:00:03"]

1. e4 {[%clk 0:00:00]}  c5 {[%clk 0:00:00]} 2. Nf3 {[%clk 0:02:59]}  e6 {[%clk 0:02:58]} 3. d4 {[%clk 0:02:59]}  cxd4 {[%clk 0:02:57]} 4. Nxd4 {[%clk 0:02:59]}  Nc6 {[%clk 0:02:56]} 5. Nc3 {[%clk 0:03:00]}  a6 {[%clk 0:02:54]} 6. Be3 {[%clk 0:03:00]}  Bb4 {[%clk 0:02:47]} 7. Nxc6 {[%clk 0:02:58]}  bxc6 {[%clk 0:02:48]} 8. Qd4 {[%clk 0:02:55]}  Bf8 {[%clk 0:02:47]} 9. O-O-O {[%clk 0:02:52]}  Nf6 {[%clk 0:02:44]} 10. Bc4 {[%clk 0:02:45]}  d5 {[%clk 0:02:39]} 11. Bb3 {[%clk 0:02:30]}  Be7 {[%clk 0:02:33]} 12. Ba4 {[%clk 0:01:56]}  Bd7 {[%clk 0:02:26]} 13. e5 {[%clk 0:01:46]}  Ng8 {[%clk 0:02:22]} 14. Ne4 {[%clk 0:01:24]}  Rb8 {[%clk 0:02:19]} 15. Nc5 {[%clk 0:01:04]}  Nh6 {[%clk 0:02:16]} 16. g4 {[%clk 0:00:47]}  Qb6 {[%clk 0:02:06]} 17. Nxe6 {[%clk 0:00:19]}  fxe6 {[%clk 0:01:57]} 18. Qxb6 {[%clk 0:00:09]}  Rxb6 {[%clk 0:01:54]} 19. Bxb6 {[%clk 0:00:08]}  Nxg4 {[%clk 0:01:50]} 20. f4 {[%clk 0:00:09]}  O-O {[%clk 0:01:45]} 21. Rdf1 {[%clk 0:00:09]}  Rb8 {[%clk 0:01:39]} 22. Bc7 {[%clk 0:00:08]}  Rb4 {[%clk 0:01:33]} 23. b3 {[%clk 0:00:08]}  Bc5 {[%clk 0:01:30]} 24. Bd6 {[%clk 0:00:08]}  Be3+ {[%clk 0:01:25]} 25. Kb1 {[%clk 0:00:07]}  Re4 {[%clk 0:01:20]} 26. h3 {[%clk 0:00:08]}  Nh6 {[%clk 0:01:15]} 27. Rf3 {[%clk 0:00:07]}  Nf5 {[%clk 0:01:11]} 28. Rhf1 {[%clk 0:00:07]}  Nd4 {[%clk 0:01:06]} 29. Rxe3 {[%clk 0:00:06]}  Rxe3 {[%clk 0:01:03]} 30. Bc5 {[%clk 0:00:06]}  Re4 {[%clk 0:00:59]} 31. Bxd4 {[%clk 0:00:06]}  Rxd4 {[%clk 0:00:55]} 32. Rf2 {[%clk 0:00:07]}  g6 {[%clk 0:00:55]} 33. Kb2 {[%clk 0:00:07]}  Kf7 {[%clk 0:00:49]} 34. Kc3 {[%clk 0:00:07]}  Re4 {[%clk 0:00:41]} 35. b4 {[%clk 0:00:07]}  a5 {[%clk 0:00:35]} 36. a3 {[%clk 0:00:07]}  c5 {[%clk 0:00:28]} 37. Bxd7 {[%clk 0:00:06]}  axb4+ {[%clk 0:00:26]} 38. axb4 {[%clk 0:00:05]}  Rxb4 {[%clk 0:00:17]} 39. Rf1 {[%clk 0:00:06]}  Rc4+ {[%clk 0:00:17]} 40. Kd3 {[%clk 0:00:06]}  Rd4+ {[%clk 0:00:15]} 41. Kc3 {[%clk 0:00:05]}  Rc4+ {[%clk 0:00:15]} 42. Kd2 {[%clk 0:00:05]}  Rd4+ {[%clk 0:00:15]} 43. Kc1 {[%clk 0:00:06]}  Re4 {[%clk 0:00:15]} 44. Bb5 {[%clk 0:00:06]}  Rb4 {[%clk 0:00:15]} 45. Bd3 {[%clk 0:00:05]}  Ra4 {[%clk 0:00:14]} 46. c3 {[%clk 0:00:05]}  c4 {[%clk 0:00:14]} 47. Bc2 {[%clk 0:00:04]}  Ra3 {[%clk 0:00:12]} 48. Kd2 {[%clk 0:00:04]}  Ra2 {[%clk 0:00:11]} 49. Rb1 {[%clk 0:00:04]}  Ra3 {[%clk 0:00:11]} 50. Rb7+ {[%clk 0:00:03]}  Kg8 {[%clk 0:00:10]} 51. Bb1 {[%clk 0:00:03]}  Ra6 {[%clk 0:00:09]} 52. Rb8+ {[%clk 0:00:03]}  Kg7 {[%clk 0:00:06]} 53. Rb7+ {[%clk 0:00:01]}  Kh6 {[%clk 0:00:06]} 54. Re7 {[%clk 0:00:02]}  Rb6 {[%clk 0:00:07]} 55. Bc2 {[%clk 0:00:02]}  Ra6 {[%clk 0:00:06]} 56. h4 {[%clk 0:00:02]}  Rb6 {[%clk 0:00:05]} 57. h5 {[%clk 0:00:02]}  Kxh5 {[%clk 0:00:04]} 58. Rxh7+ {[%clk 0:00:02]}  Kg4 {[%clk 0:00:04]} 59. Bxg6 {[%clk 0:00:02]}  Kxf4 {[%clk 0:00:05]} 60. Bf7 {[%clk 0:00:01]}  Kxe5 {[%clk 0:00:06]} 61. Rh5+ {[%clk 0:00:01]}  Ke4 {[%clk 0:00:06]} 62. Bg8 {[%clk 0:00:01]}  e5 {[%clk 0:00:06]} 63. Kc2 {[%clk 0:00:02]}  Ra6 {[%clk 0:00:06]} 64. Bh7+ {[%clk 0:00:01]}  Ke3 {[%clk 0:00:05]} 65. Rh3+ {[%clk 0:00:01]}  Kf4 {[%clk 0:00:05]} 66. Rh4+ {[%clk 0:00:02]}  Kg5 {[%clk 0:00:04]} 67. Rh1 {[%clk 0:00:02]}  Ra2+ {[%clk 0:00:03]} 68. Kb1 {[%clk 0:00:02]}  Rf2 {[%clk 0:00:03]} 69. Re1 {[%clk 0:00:03]}  Kf4 {[%clk 0:00:03]} 70. Bg8 {[%clk 0:00:03]}  d4 {[%clk 0:00:03]} 71. cxd4 {[%clk 0:00:03]}  exd4 {[%clk 0:00:03]} 72. Bxc4 {[%clk 0:00:01]}  Kf3 {[%clk 0:00:03]} 73. Kc1 {[%clk 0:00:02]} 1-0


[Site "https://www.chess.com"]

[Event "Titled Tuesday Blitz January 10 Late 2023"]
[White "Fiorito, Joaquin"]
[Black "Kabilov, Amin"]
[WhiteFideId "180173"]
[BlackFideId "14700859"]
[WhiteElo "2405"]
[BlackElo "2207"]
[Result "1-0"]
[Round "01"]
[TimeControl "180+2"]
[Date "2023.01.10"]
[WhiteClock "0:02:39"]
[BlackClock "0:01:38"]

1. d4 {[%clk 0:00:00]}  Nf6 {[%clk 0:00:00]} 2. Nc3 {[%clk 0:03:00]}  g6 {[%clk 0:02:58]} 3. e4 {[%clk 0:03:01]}  d6 {[%clk 0:02:55]} 4. Be3 {[%clk 0:03:01]}  Bg7 {[%clk 0:02:54]} 5. Qd2 {[%clk 0:03:00]}  O-O {[%clk 0:02:54]} 6. Bh6 {[%clk 0:03:00]}  c6 {[%clk 0:02:55]} 7. Bxg7 {[%clk 0:03:00]}  Kxg7 {[%clk 0:02:55]} 8. Nf3 {[%clk 0:02:56]}  b5 {[%clk 0:02:55]} 9. Bd3 {[%clk 0:02:57]}  Bg4 {[%clk 0:02:55]} 10. Qf4 {[%clk 0:02:55]}  Nbd7 {[%clk 0:02:49]} 11. e5 {[%clk 0:02:52]}  dxe5 {[%clk 0:02:43]} 12. dxe5 {[%clk 0:02:50]}  b4 {[%clk 0:02:07]} 13. exf6+ {[%clk 0:02:51]}  Nxf6 {[%clk 0:02:07]} 14. Ne4 {[%clk 0:02:49]}  Bxf3 {[%clk 0:02:07]} 15. Qxf3 {[%clk 0:02:47]}  Qd4 {[%clk 0:02:03]} 16. Nxf6 {[%clk 0:02:46]}  exf6 {[%clk 0:02:00]} 17. O-O-O {[%clk 0:02:43]}  Qc5 {[%clk 0:01:57]} 18. Rhe1 {[%clk 0:02:41]}  a5 {[%clk 0:01:42]} 19. Qe3 {[%clk 0:02:40]}  Qd5 {[%clk 0:01:42]} 20. Kb1 {[%clk 0:02:40]}  a4 {[%clk 0:01:38]} 21. Bxg6 {[%clk 0:02:39]} 1-0


[Site "https://www.chess.com"]

[Event "Titled Tuesday Blitz January 10 Late 2023"]
[White "Bayo Milagro, Alvaro"]
[Black "Marin Ramirez, Gerardo"]
[WhiteFideId "22275240"]
[BlackFideId "3901068"]
[WhiteElo "2287"]
[BlackElo "2127"]
[Result "1-0"]
[Round "01"]
[TimeControl "180+2"]
[Date "2023.01.10"]
[WhiteClock "0:00:29"]
[BlackClock "0:00:18"]

1. e4 {[%clk 0:00:00]}  c5 {[%clk 0:00:00]} 2. Nf3 {[%clk 0:02:59]}  d6 {[%clk 0:02:58]} 3. Bb5+ {[%clk 0:02:59]}  Bd7 {[%clk 0:02:58]} 4. Bxd7+ {[%clk 0:02:58]}  Qxd7 {[%clk 0:02:56]} 5. O-O {[%clk 0:02:58]}  e6 {[%clk 0:02:56]} 6. c3 {[%clk 0:02:58]}  Nf6 {[%clk 0:02:49]} 7. Re1 {[%clk 0:02:57]}  Nc6 {[%clk 0:02:48]} 8. d3 {[%clk 0:02:57]}  Be7 {[%clk 0:02:41]} 9. Nbd2 {[%clk 0:02:56]}  O-O {[%clk 0:02:39]} 10. Nf1 {[%clk 0:02:56]}  Rfe8 {[%clk 0:02:39]} 11. Ng3 {[%clk 0:02:57]}  Bf8 {[%clk 0:02:36]} 12. d4 {[%clk 0:02:57]}  cxd4 {[%clk 0:02:33]} 13. cxd4 {[%clk 0:02:57]}  d5 {[%clk 0:02:16]} 14. e5 {[%clk 0:02:58]}  Ne4 {[%clk 0:02:15]} 15. Nxe4 {[%clk 0:02:56]}  dxe4 {[%clk 0:02:14]} 16. Rxe4 {[%clk 0:02:57]}  Qd5 {[%clk 0:02:14]} 17. Re1 {[%clk 0:02:58]}  Red8 {[%clk 0:02:14]} 18. Be3 {[%clk 0:02:53]}  Rd7 {[%clk 0:02:04]} 19. a3 {[%clk 0:02:52]}  Rad8 {[%clk 0:01:46]} 20. Qc2 {[%clk 0:02:46]}  Rc7 {[%clk 0:01:45]} 21. Rac1 {[%clk 0:02:41]}  Rdc8 {[%clk 0:01:38]} 22. Qb1 {[%clk 0:02:38]}  h6 {[%clk 0:01:38]} 23. b4 {[%clk 0:02:13]}  a5 {[%clk 0:01:30]} 24. b5 {[%clk 0:02:10]}  Ne7 {[%clk 0:01:19]} 25. a4 {[%clk 0:02:03]}  Nf5 {[%clk 0:01:13]} 26. Rxc7 {[%clk 0:01:58]}  Rxc7 {[%clk 0:01:10]} 27. Rc1 {[%clk 0:01:58]}  Rc4 {[%clk 0:01:10]} 28. Rxc4 {[%clk 0:01:58]}  Qxc4 {[%clk 0:01:10]} 29. Qd1 {[%clk 0:01:46]}  Bb4 {[%clk 0:01:09]} 30. h4 {[%clk 0:01:47]}  Bc3 {[%clk 0:01:03]} 31. h5 {[%clk 0:01:26]}  Qb4 {[%clk 0:00:49]} 32. d5 {[%clk 0:01:17]}  exd5 {[%clk 0:00:43]} 33. Qxd5 {[%clk 0:01:02]}  Nxe3 {[%clk 0:00:40]} 34. fxe3 {[%clk 0:00:58]}  Qb1+ {[%clk 0:00:40]} 35. Kh2 {[%clk 0:00:59]}  Qf5 {[%clk 0:00:35]} 36. Qxb7 {[%clk 0:00:57]}  Qxh5+ {[%clk 0:00:35]} 37. Kg1 {[%clk 0:00:32]}  Bxe5 {[%clk 0:00:33]} 38. Qa8+ {[%clk 0:00:32]}  Kh7 {[%clk 0:00:27]} 39. Qe4+ {[%clk 0:00:32]}  f5 {[%clk 0:00:22]} 40. Qxe5 {[%clk 0:00:33]}  Qf7 {[%clk 0:00:21]} 41. b6 {[%clk 0:00:32]}  Qb3 {[%clk 0:00:22]} 42. Qxf5+ {[%clk 0:00:30]}  Kh8 {[%clk 0:00:21]} 43. Qc8+ {[%clk 0:00:30]}  Kh7 {[%clk 0:00:21]} 44. Qf5+ {[%clk 0:00:30]}  Kh8 {[%clk 0:00:20]} 45. Qc5 {[%clk 0:00:28]}  Qxa4 {[%clk 0:00:18]} 46. b7 {[%clk 0:00:29]} 1-0


[Site "https://www.chess.com"]

[Event "Titled Tuesday Blitz January 10 Late 2023"]
[White "Bulgurlu, Okan"]
[Black "Ju, Wenjun"]
[WhiteFideId "6352316"]
[BlackFideId "8603006"]
[WhiteElo "1908"]
[BlackElo "2550"]
[Result "0-1"]
[Round "01"]
[TimeControl "180+2"]
[Date "2023.01.10"]
[WhiteClock "0:00:23"]
[BlackClock "0:00:16"]

1. e4 {[%clk 0:00:00]}  c5 {[%clk 0:00:00]} 2. Nf3 {[%clk 0:03:00]}  d6 {[%clk 0:02:59]} 3. c3 {[%clk 0:02:59]}  Nf6 {[%clk 0:02:59]} 4. Be2 {[%clk 0:02:58]}  g6 {[%clk 0:02:59]} 5. d3 {[%clk 0:02:56]}  Bg7 {[%clk 0:02:58]} 6. O-O {[%clk 0:02:56]}  O-O {[%clk 0:02:58]} 7. h3 {[%clk 0:02:54]}  Nc6 {[%clk 0:02:58]} 8. Be3 {[%clk 0:02:53]}  e5 {[%clk 0:02:58]} 9. Nbd2 {[%clk 0:02:52]}  Re8 {[%clk 0:02:57]} 10. a4 {[%clk 0:02:43]}  b6 {[%clk 0:02:49]} 11. d4 {[%clk 0:02:40]}  exd4 {[%clk 0:02:46]} 12. cxd4 {[%clk 0:02:23]}  Bb7 {[%clk 0:02:19]} 13. Bb5 {[%clk 0:02:21]}  a6 {[%clk 0:02:08]} 14. Bxc6 {[%clk 0:01:54]}  Bxc6 {[%clk 0:02:05]} 15. d5 {[%clk 0:01:53]}  Bd7 {[%clk 0:02:06]} 16. Qc2 {[%clk 0:01:48]}  h6 {[%clk 0:01:58]} 17. Bf4 {[%clk 0:01:36]}  Qc7 {[%clk 0:01:46]} 18. Rfe1 {[%clk 0:01:33]}  Nh5 {[%clk 0:01:34]} 19. Bh2 {[%clk 0:01:28]}  b5 {[%clk 0:01:22]} 20. g4 {[%clk 0:01:23]}  Nf6 {[%clk 0:01:20]} 21. e5 {[%clk 0:01:11]}  dxe5 {[%clk 0:01:19]} 22. Bxe5 {[%clk 0:01:08]}  Rxe5 {[%clk 0:01:05]} 23. Nxe5 {[%clk 0:00:52]}  Nxd5 {[%clk 0:00:59]} 24. Nxd7 {[%clk 0:00:36]}  Qxd7 {[%clk 0:00:50]} 25. Qxc5 {[%clk 0:00:36]}  Rc8 {[%clk 0:00:50]} 26. Qa3 {[%clk 0:00:36]}  Nf4 {[%clk 0:00:47]} 27. Ne4 {[%clk 0:00:30]}  bxa4 {[%clk 0:00:45]} 28. Rad1 {[%clk 0:00:30]}  Qa7 {[%clk 0:00:34]} 29. Qe3 {[%clk 0:00:24]}  Qxe3 {[%clk 0:00:20]} 30. Rxe3 {[%clk 0:00:23]}  Bxb2 {[%clk 0:00:17]} 31. Rf3 {[%clk 0:00:24]}  g5 {[%clk 0:00:15]} 32. h4 {[%clk 0:00:23]}  a3 {[%clk 0:00:13]} 33. hxg5 {[%clk 0:00:22]}  hxg5 {[%clk 0:00:13]} 34. Nxg5 {[%clk 0:00:23]}  Ne2+ {[%clk 0:00:11]} 35. Kf1 {[%clk 0:00:23]}  Rc1 {[%clk 0:00:11]} 36. Rxc1 {[%clk 0:00:23]}  Nxc1 {[%clk 0:00:07]} 37. Rxa3 {[%clk 0:00:22]}  Bxa3 {[%clk 0:00:08]} 38. Ke1 {[%clk 0:00:19]}  Nd3+ {[%clk 0:00:07]} 39. Ke2 {[%clk 0:00:20]}  Nf4+ {[%clk 0:00:07]} 40. Kf3 {[%clk 0:00:21]}  Ne6 {[%clk 0:00:07]} 41. Ne4 {[%clk 0:00:21]}  Be7 {[%clk 0:00:07]} 42. Ke3 {[%clk 0:00:21]}  a5 {[%clk 0:00:05]} 43. f4 {[%clk 0:00:21]}  a4 {[%clk 0:00:06]} 44. f5 {[%clk 0:00:21]}  Nc5 {[%clk 0:00:07]} 45. Nc3 {[%clk 0:00:22]}  a3 {[%clk 0:00:07]} 46. Kd2 {[%clk 0:00:21]}  Bf6 {[%clk 0:00:06]} 47. Na2 {[%clk 0:00:21]}  Na4 {[%clk 0:00:06]} 48. Kc2 {[%clk 0:00:21]}  Bb2 {[%clk 0:00:06]} 49. Kb3 {[%clk 0:00:21]}  Nc5+ {[%clk 0:00:07]} 50. Kc2 {[%clk 0:00:21]}  Ne4 {[%clk 0:00:07]} 51. Nb4 {[%clk 0:00:20]}  Kg7 {[%clk 0:00:08]} 52. Nd3 {[%clk 0:00:20]}  Bd4 {[%clk 0:00:08]} 53. Kb3 {[%clk 0:00:20]}  Nc5+ {[%clk 0:00:08]} 54. Kxa3 {[%clk 0:00:19]}  Nxd3 {[%clk 0:00:08]} 55. Kb3 {[%clk 0:00:16]}  Ne5 {[%clk 0:00:08]} 56. Kc2 {[%clk 0:00:17]}  Be3 {[%clk 0:00:09]} 57. Kd1 {[%clk 0:00:17]}  Bg5 {[%clk 0:00:09]} 58. Ke2 {[%clk 0:00:17]}  Nxg4 {[%clk 0:00:09]} 59. Kf3 {[%clk 0:00:18]}  Nh6 {[%clk 0:00:10]} 60. Ke4 {[%clk 0:00:18]}  Kf6 {[%clk 0:00:11]} 61. Kd5 {[%clk 0:00:19]}  Nxf5 {[%clk 0:00:12]} 62. Kc4 {[%clk 0:00:19]}  Ne7 {[%clk 0:00:13]} 63. Kc5 {[%clk 0:00:20]}  Ke5 {[%clk 0:00:13]} 64. Kb6 {[%clk 0:00:21]}  f5 {[%clk 0:00:14]} 65. Kc7 {[%clk 0:00:22]}  f4 {[%clk 0:00:15]} 66. Kd8 {[%clk 0:00:23]}  f3 {[%clk 0:00:16]} 0-1


[Site "https://www.chess.com"]

[Event "Titled Tuesday Blitz January 10 Late 2023"]
[White "Karttunen, Mika"]
[Black "Osmonbekov, Talaibek"]
[WhiteFideId "502081"]
[BlackFideId "2017253"]
[WhiteElo "2490"]
[BlackElo "2137"]
[Result "1-0"]
[Round "01"]
[TimeControl "180+2"]
[Date "2023.01.10"]
[WhiteClock "0:00:15"]
[BlackClock "0:00:05"]

1. d4 {[%clk 0:00:00]}  e6 {[%clk 0:00:00]} 2. c4 {[%clk 0:02:52]}  f5 {[%clk 0:02:59]} 3. Nc3 {[%clk 0:02:51]}  Bb4 {[%clk 0:02:59]} 4. Qb3 {[%clk 0:02:47]}  a5 {[%clk 0:02:59]} 5. Bd2 {[%clk 0:02:41]}  Nf6 {[%clk 0:02:58]} 6. f3 {[%clk 0:02:39]}  O-O {[%clk 0:02:52]} 7. Nh3 {[%clk 0:02:38]}  d6 {[%clk 0:02:50]} 8. e3 {[%clk 0:02:37]}  h6 {[%clk 0:02:34]} 9. Bd3 {[%clk 0:02:31]}  e5 {[%clk 0:02:18]} 10. a3 {[%clk 0:02:30]}  Bxc3 {[%clk 0:02:17]} 11. Bxc3 {[%clk 0:02:11]}  e4 {[%clk 0:02:13]} 12. Be2 {[%clk 0:02:11]}  exf3 {[%clk 0:01:37]} 13. gxf3 {[%clk 0:02:07]}  Qe8 {[%clk 0:01:32]} 14. Bd2 {[%clk 0:02:06]}  Qh5 {[%clk 0:01:18]} 15. Nf2 {[%clk 0:01:58]}  f4 {[%clk 0:01:11]} 16. e4 {[%clk 0:01:52]}  Nc6 {[%clk 0:01:02]} 17. Bc3 {[%clk 0:01:50]}  a4 {[%clk 0:01:00]} 18. Qc2 {[%clk 0:01:33]}  Bd7 {[%clk 0:00:45]} 19. h4 {[%clk 0:01:22]}  Na5 {[%clk 0:00:40]} 20. O-O-O {[%clk 0:01:15]}  Nb3+ {[%clk 0:00:34]} 21. Kb1 {[%clk 0:01:09]}  c6 {[%clk 0:00:30]} 22. Nd3 {[%clk 0:01:09]}  d5 {[%clk 0:00:24]} 23. Nxf4 {[%clk 0:00:53]}  Qf7 {[%clk 0:00:19]} 24. Nd3 {[%clk 0:00:50]}  dxe4 {[%clk 0:00:16]} 25. Ne5 {[%clk 0:00:22]}  Qe8 {[%clk 0:00:10]} 26. fxe4 {[%clk 0:00:23]}  c5 {[%clk 0:00:07]} 27. Nxd7 {[%clk 0:00:22]}  Nxd7 {[%clk 0:00:05]} 28. d5 {[%clk 0:00:19]}  Ne5 {[%clk 0:00:05]} 29. Rdf1 {[%clk 0:00:18]}  Nd4 {[%clk 0:00:05]} 30. Bxd4 {[%clk 0:00:16]}  cxd4 {[%clk 0:00:05]} 31. Qd2 {[%clk 0:00:15]} 1-0


[Site "https://www.chess.com"]

[Event "Titled Tuesday Blitz January 10 Late 2023"]
[White "Martins, Bruno Andre Leite"]
[Black "Simonovic, Miroslav"]
[WhiteFideId "1942255"]
[BlackFideId "919152"]
[WhiteElo "2348"]
[BlackElo "2082"]
[Result "1-0"]
[Round "01"]
[TimeControl "180+2"]
[Date "2023.01.10"]
[WhiteClock "0:01:47"]
[BlackClock "0:00:18"]

1. e4 {[%clk 0:00:00]}  c5 {[%clk 0:00:00]} 2. Nf3 {[%clk 0:02:55]}  Nc6 {[%clk 0:03:00]} 3. d4 {[%clk 0:02:55]}  cxd4 {[%clk 0:03:01]} 4. Nxd4 {[%clk 0:02:54]}  a6 {[%clk 0:03:02]} 5. c4 {[%clk 0:02:54]}  e5 {[%clk 0:03:02]} 6. Nf5 {[%clk 0:02:49]}  d6 {[%clk 0:03:02]} 7. Ne3 {[%clk 0:02:50]}  Nf6 {[%clk 0:03:02]} 8. Nc3 {[%clk 0:02:45]}  Be7 {[%clk 0:03:01]} 9. Ned5 {[%clk 0:02:46]}  Be6 {[%clk 0:03:01]} 10. Bd3 {[%clk 0:02:45]}  O-O {[%clk 0:02:58]} 11. O-O {[%clk 0:02:42]}  Rb8 {[%clk 0:02:57]} 12. Kh1 {[%clk 0:02:40]}  Nd7 {[%clk 0:02:38]} 13. Be3 {[%clk 0:02:30]}  Nc5 {[%clk 0:02:31]} 14. Bc2 {[%clk 0:02:24]}  g6 {[%clk 0:02:31]} 15. b4 {[%clk 0:02:23]}  Nd7 {[%clk 0:02:24]} 16. Qd2 {[%clk 0:02:13]}  f5 {[%clk 0:02:00]} 17. Nxe7+ {[%clk 0:02:13]}  Qxe7 {[%clk 0:01:57]} 18. Nd5 {[%clk 0:02:12]}  Bxd5 {[%clk 0:01:57]} 19. cxd5 {[%clk 0:02:12]}  Nd8 {[%clk 0:01:50]} 20. Bg5 {[%clk 0:02:13]}  Qf7 {[%clk 0:01:40]} 21. Bh6 {[%clk 0:01:59]}  Re8 {[%clk 0:01:34]} 22. f4 {[%clk 0:01:57]}  exf4 {[%clk 0:01:33]} 23. exf5 {[%clk 0:01:58]}  gxf5 {[%clk 0:01:12]} 24. Rxf4 {[%clk 0:01:55]}  Re5 {[%clk 0:00:58]} 25. Raf1 {[%clk 0:01:50]}  Qg6 {[%clk 0:00:58]} 26. Rxf5 {[%clk 0:01:48]}  Rxf5 {[%clk 0:00:43]} 27. Bxf5 {[%clk 0:01:46]}  Qe8 {[%clk 0:00:18]} 28. Qg5+ {[%clk 0:01:47]} 1-0


[Site "https://www.chess.com"]